bitfinex/quotes_ETHUSD_20260227
["timestamp","ask_amount","ask_price","bid_price","bid_amount"]
[1772230938009,0.00153886,1916.0,1915.3,5.11702193]
[1772230938216,0.00153886,1916.0,1915.3,1.655]
[1772230939518,0.00153886,1916.0,1915.4,1.30521039]
[1772230940320,0.5,1916.5,1915.6,3.46202193]
[1772230941795,0.5,1916.5,1915.7,1.305006]
[1772230942791,1.3044687,1916.5,1915.7,1.305006]
[1772230943002,0.5,1916.4,1915.5,5.22042821]
[1772230943704,0.5,1916.2,1915.4,0.0011]
[1772230946231,0.5,1916.1,1915.4,0.0011]
[1772230947519,0.5,1916.1,1915.1,1.30651486]
[1772230947722,0.49945,1915.9,1915.1,0.0011]
[1772230947925,0.49945,1915.7,1915.1,0.0011]
[1772230948106,0.49945,1915.6,1915.1,0.0011]
[1772230948310,0.49945,1915.4,1915.1,0.0011]
[1772230948916,0.49445494,1915.4,1915.1,0.0011]
[1772230949507,1.1253845,1915.5,1914.1,6.87673776]
[1772230949508,0.49445494,1915.2,1914.2,1.30602862]
[1772230950313,0.49445494,1915.0,1914.2,1.30602862]
[1772230951693,0.49445494,1915.0,1914.0,1.30769467]
[1772230951694,0.49445494,1914.9,1914.0,1.30769467]
[1772230952324,0.49445494,1914.7,1914.0,0.00153886]
[1772230953721,5.22165944,1915.2,1914.3,2.95847732]
[1772230953722,0.49445494,1915.2,1914.3,2.95847732]
[1772230954300,0.49445494,1915.0,1914.4,1.30589218]
[1772230954702,0.49445494,1915.0,1914.1,1.30604369]
[1772230955006,0.49445494,1915.0,1914.3,0.0011]
[1772230956406,1.79999529,1915.0,1914.3,0.0011]
[1772230956810,0.49445494,1915.0,1914.3,0.0011]
[1772230957022,1.79995186,1915.0,1914.3,0.0011]
[1772230957203,1.79994002,1915.0,1914.3,0.0011]
[1772230957601,0.49445494,1914.9,1914.3,0.0011]
[1772230958526,1.30561938,1914.8,1914.3,0.0011]
[1772230958727,0.49445494,1914.7,1914.3,0.0011]
[1772230959332,0.49445494,1914.7,1914.0,0.00263886]
[1772230959333,0.49445494,1914.5,1914.0,0.00263886]
[1772230959731,0.49445494,1914.5,1913.5,5.22586484]
[1772230960607,0.45237664,1914.3,1913.5,5.22586484]
[1772230962718,1.75840526,1914.2,1913.5,5.22586484]
[1772230963430,0.45237664,1914.1,1913.5,5.22586484]
[1772230964106,0.45237664,1914.2,1913.5,5.70947011]
[1772230964313,0.45237664,1914.5,1913.6,0.48360527]
[1772230965850,2.303,1914.7,1913.8,0.48360527]
[1772230966019,3.60873764,1914.7,1913.8,0.48360527]
[1772230966744,0.45237664,1914.8,1913.8,0.48360527]
[1772230967726,1.30555964,1914.9,1913.8,0.48360527]
[1772230967948,1.75944548,1915.0,1914.0,0.48360527]
[1772230968416,0.4539155,1915.0,1914.0,0.48360527]
[1772230968616,1.75941926,1915.0,1914.0,0.48360527]
[1772230969113,1.75941926,1915.0,1914.0,0.43360527]
[1772230970032,0.4539155,1915.0,1914.2,0.48360527]
[1772230970232,0.00153886,1915.0,1914.2,0.48360527]
[1772230972025,0.00153886,1915.0,1914.3,1.3059604]
[1772230972225,0.00153886,1915.0,1914.4,0.48360527]
[1772230973120,0.00153886,1915.0,1914.3,1.3059604]
[1772230973121,0.4539155,1915.0,1914.3,1.3059604]
[1772230974244,1.3055512,1914.9,1914.3,1.3059604]
[1772230974437,1.75792784,1914.9,1914.3,1.3059604]
[1772230975244,0.45237664,1914.9,1914.3,1.3059604]
[1772230975422,0.45237664,1914.9,1914.3,1.78956567]
[1772230976145,1.75795137,1914.9,1914.3,1.78956567]
[1772230978952,0.45237664,1914.9,1914.4,0.48360527]
[1772230979320,0.00153886,1915.0,1914.4,0.48360527]
[1772230980328,0.001,1915.1,1914.6,0.48360527]
[1772230980853,0.001,1914.9,1914.6,0.48360527]
[1772230981153,0.001,1914.9,1914.8,0.48360527]
[1772230981536,0.001,1914.9,1914.7,1.30568757]
[1772230981730,0.001,1914.9,1914.6,7.35135557]
[1772230981731,0.001,1914.9,1914.6,1.30573784]
[1772230982150,0.45337664,1914.9,1914.4,0.48360527]
[1772230982356,0.45337664,1914.9,1914.2,5.70767596]
[1772230983259,1.75892784,1914.9,1914.3,0.48360527]
[1772230983554,0.45237664,1914.8,1914.3,0.48360527]
[1772230986163,1.75800328,1914.8,1914.3,1.7895165]
[1772230986661,0.45237664,1914.7,1914.3,1.30591123]
[1772230988469,0.45237664,1914.7,1914.2,0.48360527]
[1772230991062,0.45237664,1914.7,1914.3,1.3059604]
[1772230992840,0.45237664,1914.7,1914.4,0.0011]
[1772230993241,1.75676473,1914.9,1914.4,0.47958152]
[1772230993468,0.45120568,1914.9,1914.4,0.47958152]
[1772230996370,0.001,1914.9,1914.6,0.47848152]
[1772230998771,0.001,1914.9,1914.7,1.30568757]
[1772230998976,0.001,1914.9,1914.7,1.78416909]
[1772231000354,0.001,1914.9,1914.8,0.47848152]
[1772231001144,0.001,1914.9,1914.8,1.7841009]
[1772231002843,0.001,1915.1,1914.9,0.47848152]
[1772231003040,0.001,1915.1,1915.0,1.30548302]
[1772231005470,0.001,1915.1,1915.0,1.78396454]
[1772231005668,4.04039749,1915.5,1915.0,1.78396454]
[1772231005846,4.04039749,1915.5,1915.0,1.30548302]
[1772231005847,0.45020568,1915.4,1915.0,1.30548302]
[1772231010572,0.45020568,1915.3,1914.9,5.70057974]
[1772231012091,0.45020568,1915.3,1914.9,1.78403272]
[1772231012586,0.45020568,1915.2,1914.9,0.47848152]
[1772231012953,0.45020568,1915.2,1914.9,1.78402905]
[1772231013698,0.45020568,1915.4,1915.0,0.47848152]
[1772231013990,0.45020568,1915.8,1915.2,0.47848152]
[1772231014677,2.255,1915.9,1915.4,0.47848152]
[1772231014979,0.001,1915.9,1915.5,0.47848152]
[1772231015364,0.45120568,1915.9,1915.4,0.47848152]
[1772231016878,0.45120568,1915.9,1915.5,1.30514226]
[1772231017177,0.45120568,1915.9,1915.5,1.78362378]
[1772231017381,0.001,1915.9,1915.6,0.47848152]
[1772231017995,0.45020568,1916.2,1915.6,0.47848152]
[1772231018676,0.45020568,1916.2,1915.6,2.13648152]
[1772231018857,1.75479301,1916.4,1915.7,0.47848152]
[1772231019056,1.75479301,1916.4,1915.9,0.47848152]
[1772231019057,0.45020568,1916.4,1915.9,0.47848152]
[1772231019570,2.70220568,1916.6,1915.9,0.47848152]
[1772231019764,4.00660392,1916.6,1915.9,0.47848152]
[1772231019981,0.45020568,1916.5,1915.9,0.47848152]
[1772231021181,0.45020568,1916.5,1916.0,1.79503247]
[1772231021382,0.45020568,1916.5,1916.1,0.4902308]
[1772231023056,0.45020568,1916.5,1916.1,1.79492237]
[1772231028381,0.45020568,1916.5,1916.1,1.30469157]
[1772231028686,0.45020568,1916.5,1916.2,0.4902308]
[1772231029692,0.45020568,1916.5,1916.2,1.79488769]
[1772231030696,0.45020568,1916.5,1916.2,0.4902308]
[1772231031089,0.001,1916.4,1916.2,0.4902308]
[1772231031274,0.001,1916.4,1916.2,1.79489208]
[1772231033887,0.001,1916.4,1916.3,0.4902308]
[1772231034064,0.001,1916.4,1916.2,1.79489208]
[1772231035668,0.001,1916.4,1916.2,0.4902308]
[1772231035870,0.001,1916.4,1916.2,1.79488972]
[1772231036187,0.001,1916.4,1916.2,0.4902308]
[1772231037494,0.001,1916.4,1916.2,1.79489501]
[1772231037998,0.001,1916.4,1916.3,0.4902308]
[1772231039276,0.001,1916.4,1916.1,0.4902308]
[1772231040067,0.001,1916.4,1916.3,0.4902308]
[1772231040898,0.49212522,1916.7,1916.4,0.4902308]
[1772231041410,0.49212522,1916.8,1916.2,3.45589628]
[1772231041605,0.49212522,1916.8,1916.3,0.4902308]
[1772231041775,4.04581999,1917.0,1916.3,0.4902308]
[1772231041975,0.49212522,1916.9,1916.3,0.4902308]
[1772231042499,0.49212522,1916.8,1916.3,0.4902308]
[1772231042674,1.30420482,1916.9,1916.3,0.4902308]
[1772231042875,4.04583839,1917.0,1916.3,0.4902308]
[1772231043078,0.001,1916.4,1916.2,1.30466548]
[1772231044389,0.001,1916.4,1916.2,2.96866548]
[1772231044590,0.001,1916.4,1916.2,3.45889628]
[1772231045507,0.001,1916.4,1916.3,0.4902308]
[1772231045735,0.49212522,1916.9,1916.3,0.4902308]
[1772231046004,0.00153886,1917.0,1916.3,0.4902308]
[1772231046906,0.00153886,1917.0,1916.5,0.4902308]
[1772231047203,0.00153886,1917.0,1916.7,0.4902308]
[1772231049818,0.00153886,1917.0,1916.8,1.30425709]
[1772231050115,0.49212522,1917.3,1916.9,0.4902308]
[1772231050416,5.2162315,1917.5,1916.9,0.4902308]
[1772231050622,0.001,1917.5,1917.1,0.47032307]
[1772231050789,0.4667967,1917.5,1917.1,0.47032307]
[1772231051921,0.4667967,1917.5,1917.1,1.77433771]
[1772231052424,0.4667967,1917.5,1917.1,1.30401464]
[1772231052598,0.001,1917.5,1917.2,0.47032307]
[1772231052796,0.4667967,1917.5,1917.1,1.30401464]
[1772231052999,0.4667967,1917.5,1917.1,1.77433771]
[1772231053607,0.4667967,1917.5,1917.2,0.47032307]
[1772231053810,0.4657967,1917.9,1917.5,0.47032307]
[1772231054022,0.4657967,1917.9,1917.4,1.77416513]
[1772231054023,0.4657967,1917.8,1917.4,1.77416513]
[1772231054324,0.4657967,1917.8,1917.3,1.30386831]
[1772231054519,0.4657967,1917.8,1917.3,1.77419138]
[1772231055497,0.4657967,1917.8,1917.1,1.77434559]
[1772231055906,0.4657967,1917.8,1917.2,0.47032307]
[1772231056315,0.4657967,1917.6,1917.2,0.47032307]
[1772231056700,0.001,1917.4,1917.2,1.77430606]
[1772231057098,0.001,1917.4,1917.3,0.47032307]
[1772231059326,0.001,1917.4,1917.2,1.30398299]
[1772231059900,0.001,1917.4,1917.2,1.77430606]
[1772231061920,0.4657967,1917.6,1917.3,0.47032307]
[1772231062728,1.76937928,1917.8,1917.3,0.47032307]
[1772231063117,0.4657967,1917.7,1917.3,0.47032307]
[1772231064109,0.4657967,1917.7,1917.3,1.77418282]
[1772231065533,0.4657967,1917.7,1917.4,0.47032307]
[1772231065939,0.4657967,1917.9,1917.5,0.47032307]
[1772231066122,0.4657967,1917.8,1917.5,0.47032307]
[1772231066316,0.4657967,1917.8,1917.5,1.7741032]
[1772231066721,1.30497994,1918.0,1917.6,0.47032307]
[1772231066935,0.00153886,1918.0,1917.6,0.47032307]
[1772231067238,1.30498385,1918.0,1917.6,0.47032307]
[1772231067745,1.77078055,1918.0,1917.6,0.47032307]
[1772231068242,0.4657967,1917.9,1917.6,0.47032307]
[1772231068440,0.4657967,1917.9,1917.5,1.30377557]
[1772231068646,0.4657967,1917.9,1917.5,1.77409864]
[1772231068821,0.46733556,1918.0,1917.6,0.47032307]
[1772231069025,0.00153886,1918.0,1917.6,0.47032307]
[1772231069245,1.30501367,1918.0,1917.7,0.47032307]
[1772231069544,0.001,1917.9,1917.7,0.47032307]
[1772231070924,0.00153886,1918.0,1917.8,0.96516658]
[1772231071734,0.00153886,1918.0,1917.8,0.47032307]
[1772231071935,0.00153886,1918.0,1917.7,0.47032307]
[1772231072517,0.4657967,1917.7,1917.3,0.0011]
[1772231072717,0.41584371,1917.7,1917.3,0.0011]
[1772231074765,1.76950967,1917.6,1917.3,0.0011]
[1772231075056,0.4657967,1917.5,1917.3,0.0011]
[1772231075238,1.30371297,1917.6,1917.3,0.0011]
[1772231075438,0.4657967,1917.5,1917.3,0.0011]
[1772231075651,0.4657967,1917.5,1917.2,0.0011]
[1772231075952,0.4657967,1917.5,1917.0,0.0011]
[1772231076140,0.4657967,1917.5,1917.1,0.0011]
[1772231076344,1.30371297,1917.6,1917.2,0.0011]
[1772231076552,1.76950967,1917.6,1917.2,0.0011]
[1772231076757,1.76964566,1917.4,1917.0,0.0011]
[1772231077053,1.30384896,1917.4,1917.1,0.0011]
[1772231077350,1.76964566,1917.4,1917.1,0.0011]
[1772231078137,0.4657967,1917.3,1917.1,0.0011]
[1772231078948,1.76973637,1917.3,1917.1,0.0011]
[1772231079145,0.4657967,1917.2,1917.0,0.0011]
[1772231079346,0.4657967,1917.2,1917.0,0.0022]
[1772231081658,0.48229456,1917.2,1917.1,0.0011]
[1772231083047,1.7862912,1917.2,1917.0,0.0011]
[1772231083237,1.7862912,1917.2,1917.0,0.0022]
[1772231085466,0.48229456,1917.1,1917.0,0.0022]
[1772231086173,0.48229456,1917.1,1917.0,0.0011]
[1772231086686,0.48229456,1917.4,1917.0,0.0022]
[1772231086850,0.48229456,1917.4,1917.1,0.0011]
[1772231087961,1.30391696,1917.3,1917.1,0.0011]
[1772231088557,1.30391696,1917.3,1917.2,0.0011]
[1772231088757,1.78619723,1917.4,1917.1,0.46046779]
[1772231089160,1.78619723,1917.4,1917.2,0.0011]
[1772231090077,0.48229456,1917.4,1917.2,0.0011]
[1772231090478,5.69816522,1917.6,1917.3,0.0011]
[1772231090679,0.48229456,1917.5,1917.3,0.0011]
[1772231092173,1.78613918,1917.5,1917.3,0.0011]
[1772231094753,0.48229456,1917.5,1917.3,0.0011]
[1772231095262,0.48229456,1917.5,1917.3,0.0022]
[1772231095463,0.001,1917.4,1917.3,0.0022]
[1772231096354,0.001,1917.4,1917.3,0.46156779]
[1772231098680,0.001,1917.6,1917.3,0.46046779]
[1772231099174,0.48329456,1917.6,1917.3,0.46046779]
[1772231100387,0.001,1917.6,1917.4,0.45936779]
[1772231101391,0.48329456,1917.6,1917.3,0.0011]
[1772231101680,0.48229456,1917.4,1917.0,0.0034]
[1772231101850,0.48229456,1917.4,1916.9,1.30527651]
[1772231101851,0.49484351,1917.3,1916.7,0.45936779]
[1772231102055,0.49484351,1917.3,1916.6,1.30439319]
[1772231102056,0.48229456,1917.4,1916.9,0.45936779]
[1772231102454,0.48229456,1917.4,1916.9,1.30527651]
[1772231103475,0.48229456,1916.9,1916.3,1.30568889]
[1772231103679,0.48229456,1916.9,1916.3,0.0011]
[1772231105570,0.48229456,1916.7,1916.3,0.46046779]
[1772231106285,2.69529456,1917.1,1916.5,0.9542113]
[1772231106490,0.49484351,1917.5,1916.5,0.9542113]
[1772231106491,1.78626282,1917.3,1916.8,0.45936779]
[1772231106982,1.78626282,1917.3,1916.9,1.7646443]
[1772231107188,1.30396826,1917.3,1916.9,0.45936779]
[1772231108790,0.48229456,1917.3,1917.0,1.30527651]
[1772231108996,0.48229456,1917.3,1916.9,1.30527651]
[1772231110087,0.001,1917.2,1916.9,1.30527651]
[1772231110290,0.48161085,1917.2,1916.9,1.30527651]
[1772231111107,1.30498936,1917.2,1917.0,1.30527651]
[1772231112364,0.48161085,1917.2,1916.7,2.26958204]
[1772231112564,0.48161085,1917.2,1916.8,1.30527651]
[1772231114676,1.78561519,1917.2,1916.7,2.26958204]
[1772231114874,1.78561519,1917.2,1916.8,1.30527651]
[1772231115194,1.78561519,1917.2,1916.8,1.77574596]
[1772231115498,1.30500434,1917.2,1916.9,1.30527651]
[1772231115992,1.78561519,1917.2,1917.0,1.30527651]
[1772231116194,0.48161085,1917.2,1916.9,1.30527651]
[1772231116402,0.001,1917.2,1917.0,0.47046945]
[1772231116603,1.78560566,1917.2,1916.8,1.77574596]
[1772231116902,1.78560566,1917.2,1916.8,1.30527651]
[1772231117202,0.001,1917.2,1916.8,2.60952852]
[1772231117405,0.001,1917.2,1917.0,0.47046945]
[1772231117603,0.48061085,1917.4,1917.0,0.47046945]
[1772231117767,0.48061085,1917.4,1917.1,1.30527651]
[1772231117975,0.48061085,1917.4,1917.1,1.77574596]
[1772231118189,1.78535022,1917.6,1917.2,1.77574596]
[1772231118393,0.48161085,1917.6,1917.2,1.77574596]
[1772231118601,0.48161085,1917.6,1917.4,0.47046945]
[1772231118602,0.001,1917.6,1917.4,0.47046945]
[1772231119103,0.001,1917.6,1917.5,1.30527651]
[1772231123236,0.001,1917.6,1917.5,1.77574596]
[1772231124722,1.78562577,1918.0,1917.5,1.77574596]
[1772231124924,1.78562577,1918.0,1917.6,1.77574596]
[1772231125129,0.48214971,1918.0,1917.6,3.07944803]
[1772231125833,0.48214971,1918.0,1917.7,1.30527651]
[1772231126435,0.00153886,1918.0,1917.8,1.30527651]
[1772231127233,0.00153886,1918.0,1917.9,1.30527651]
[1772231128728,0.00153886,1918.0,1917.9,1.77574596]
[1772231132315,0.00153886,1918.0,1917.9,1.30527651]
[1772231132510,0.48214971,1918.0,1917.5,0.47046945]
[1772231133709,0.48061085,1917.9,1917.5,1.30375004]
[1772231133908,0.48061085,1917.9,1917.5,0.47046945]
[1772231134130,0.48061085,1917.9,1917.4,0.47046945]
[1772231134348,0.48061085,1917.9,1917.3,2.96996558]
[1772231134521,0.48061085,1917.9,1917.3,3.44043503]
[1772231135042,0.48161085,1917.9,1917.3,3.44043503]
[1772231135543,0.00153886,1918.0,1917.6,0.47046945]
[1772231135717,1.78376686,1918.5,1917.9,1.77397849]
[1772231135922,1.78376686,1918.5,1918.0,0.47046945]
[1772231138020,1.78376686,1918.5,1918.1,0.47046945]
[1772231138522,0.48061085,1918.4,1917.9,1.77397849]
[1772231141662,0.4815547,1918.3,1917.9,1.77397849]
[1772231141884,0.4815547,1918.3,1917.7,0.48750921]
[1772231142526,0.4815547,1918.3,1917.7,1.7911521]
[1772231142727,0.4815547,1918.3,1917.7,0.48750921]
[1772231143213,0.4815547,1918.3,1917.6,2.96865651]
[1772231143743,0.4815547,1918.1,1917.6,3.45616572]
[1772231145844,0.4815547,1918.0,1917.6,1.30365651]
[1772231146042,0.4815547,1918.0,1917.6,2.96965651]
[1772231146247,0.4815547,1918.0,1917.6,3.45716572]
[1772231146629,1.78491079,1918.2,1917.7,0.48750921]
[1772231147439,0.001,1918.0,1917.7,0.48750921]
[1772231147947,5.21246746,1918.5,1917.8,0.48750921]
[1772231147948,0.4815547,1918.4,1917.8,0.48750921]
[1772231150020,0.4815547,1918.4,1917.8,1.79104112]
[1772231150021,0.4815547,1918.2,1917.8,1.79104112]
[1772231151149,0.4815547,1918.2,1917.8,1.30353191]
[1772231151444,0.4815547,1918.2,1917.7,2.97062354]
[1772231151842,0.4815547,1918.2,1917.7,3.45813275]
[1772231152249,0.4815547,1918.1,1917.7,3.45813275]
[1772231156554,0.4815547,1918.1,1917.7,1.30362354]
[1772231156756,0.4815547,1918.1,1917.7,2.97362354]
[1772231157346,0.4815547,1918.1,1917.7,3.46113275]
[1772231158440,1.78494045,1918.1,1917.7,2.15750921]
[1772231159742,1.78494045,1918.1,1917.8,0.0011]
[1772231160260,0.4815547,1918.0,1917.8,0.0011]
[1772231161953,5.21409624,1918.3,1917.8,0.48860921]
[1772231161954,5.21407512,1918.3,1917.8,0.48860921]
[1772231162256,5.21407512,1918.3,1917.8,0.0011]
[1772231162257,0.4815547,1918.2,1917.8,0.0011]
[1772231162459,0.4815547,1918.2,1917.8,0.48860921]
[1772231162833,0.4815547,1918.1,1917.7,0.0011]
[1772231163459,0.4815547,1917.9,1917.7,0.0011]
[1772231165540,1.78513171,1917.8,1917.7,0.0011]
[1772231167175,0.4815547,1917.7,1917.4,0.48860921]
[1772231168192,1.30428988,1918.3,1917.7,0.48750921]
[1772231168344,1.30428988,1918.3,1917.9,0.48750921]
[1772231169088,1.30424088,1918.3,1918.1,0.48750921]
[1772231171738,0.001,1918.3,1918.1,0.48750921]
[1772231173374,0.001,1918.3,1918.1,0.47056272]
[1772231173977,0.001,1918.2,1918.1,0.47056272]
[1772231175385,1.3031505,1918.5,1918.1,0.47056272]
[1772231175556,1.77979349,1918.5,1918.1,0.47056272]
[1772231179102,1.77979349,1918.5,1918.0,2.04566501]
[1772231179430,0.47664299,1918.4,1918.0,2.51622773]
[1772231179593,0.47664299,1918.4,1918.0,1.21279667]
[1772231180690,0.47664299,1918.4,1917.8,0.47166272]
[1772231180873,1.3031505,1918.5,1917.8,0.0011]
[1772231180874,0.47664299,1918.2,1917.8,0.0011]
[1772231181072,0.47664299,1918.2,1917.7,0.0011]
[1772231181073,0.47664299,1918.0,1917.7,0.0011]
[1772231182092,0.47664299,1918.0,1917.5,0.0011]
[1772231184474,0.47664299,1917.8,1917.5,0.0011]
[1772231186074,0.47664299,1917.6,1917.3,0.0011]
[1772231186478,0.47664299,1917.4,1917.3,0.0011]
[1772231186807,1.30378096,1917.5,1917.3,0.0011]
[1772231186991,1.78042395,1917.5,1917.3,0.0011]
[1772231188878,5.21512385,1917.6,1917.3,0.0011]
[1772231188879,1.30373819,1917.6,1917.3,0.0011]
[1772231189102,1.30373819,1917.6,1917.3,0.47166272]
[1772231189605,1.78038118,1917.6,1917.3,0.0011]
[1772231191883,1.30373819,1917.6,1917.3,0.47166272]
[1772231192389,5.69131223,1917.7,1917.3,0.47166272]
[1772231192390,1.78033197,1917.7,1917.3,0.47166272]
[1772231192591,1.30368898,1917.7,1917.4,0.96571637]
[1772231193028,1.30368898,1917.7,1917.4,0.47056272]
[1772231195107,1.78025183,1917.8,1917.4,0.47056272]
[1772231195893,1.30360884,1917.8,1917.4,0.47056272]
[1772231196817,1.30360884,1917.8,1917.5,0.47056272]
[1772231199322,1.30350904,1917.9,1917.5,0.47056272]
[1772231200121,1.30350904,1917.9,1917.5,0.47166272]
[1772231200418,0.001,1917.7,1917.5,0.47166272]
[1772231210532,0.001,1917.7,1917.6,0.97987504]
[1772231210909,1.78766494,1918.0,1917.7,0.48472139]
[1772231215340,1.30349073,1918.0,1917.6,0.49515365]
[1772231215638,1.78766494,1918.0,1917.6,0.97987504]
[1772231216147,0.48417421,1918.1,1917.8,0.49515365]
[1772231216452,1.78756061,1918.1,1917.8,0.48472139]
[1772231216618,1.3033864,1918.1,1917.8,0.48472139]
[1772231217431,0.48417421,1918.1,1917.8,0.48472139]
[1772231218344,0.48417421,1918.1,1917.7,0.48472139]
[1772231219347,0.48417421,1918.0,1917.7,0.48472139]
[1772231221752,0.48417421,1918.0,1917.6,1.30370862]
[1772231221933,0.48417421,1918.0,1917.6,1.78843001]
[1772231225019,0.001,1917.9,1917.6,1.78843001]
[1772231226730,0.001,1917.9,1917.7,0.48472139]
[1772231228346,1.78841145,1918.3,1917.9,0.48472139]
[1772231230935,1.78841145,1918.3,1918.0,0.4959333]
[1772231231160,1.30423724,1918.3,1918.0,0.4959333]
[1772231231333,0.001,1918.3,1918.1,0.4959333]
[1772231231532,0.001,1918.3,1917.9,2.1649333]
[1772231231533,1.79252529,1918.3,1917.9,2.1649333]
[1772231232457,0.48928545,1918.3,1918.0,0.99108695]
[1772231232658,1.79252285,1918.3,1918.0,0.99108695]
[1772231232857,1.79252285,1918.3,1918.0,0.4959333]
[1772231233260,0.48928545,1918.3,1918.0,0.4959333]
[1772231233944,1.79252749,1918.3,1918.0,0.4959333]
[1772231234467,1.79252282,1918.3,1918.0,0.4959333]
[1772231235790,0.48928545,1918.3,1918.0,0.4959333]
[1772231236671,1.79253528,1918.3,1917.8,2.2946141]
[1772231236981,0.48828545,1918.2,1917.9,1.67]
[1772231237151,0.48828545,1918.2,1917.9,2.1659333]
[1772231237355,0.48828545,1918.2,1917.8,1.7986808]
[1772231237671,0.48928545,1918.2,1917.8,3.4686808]
[1772231238175,0.48928545,1918.2,1917.8,3.9646141]
[1772231238571,0.48928545,1918.2,1917.9,0.4959333]
[1772231239387,0.001,1918.2,1917.9,0.4959333]
[1772231240484,0.001,1918.2,1918.0,0.4959333]
[1772231240885,7.90907138,1918.7,1918.1,0.4959333]
[1772231240886,0.48828545,1918.7,1918.1,0.4959333]
[1772231241584,0.48828545,1918.7,1918.2,0.99108695]
[1772231242480,1.79128146,1918.7,1918.3,0.4959333]
[1772231243390,1.30299601,1918.7,1918.3,0.4959333]
[1772231243792,1.30293925,1918.8,1918.3,0.4959333]
[1772231243997,1.30293925,1918.8,1918.5,0.4959333]
[1772231245296,1.7912247,1918.8,1918.5,0.4959333]
[1772231245665,0.48828545,1918.7,1918.4,0.4959333]
[1772231246786,1.30293925,1918.8,1918.4,0.4959333]
[1772231247010,1.7912247,1918.8,1918.4,0.4959333]
[1772231249596,1.7912247,1918.8,1918.4,0.99108695]
[1772231249997,0.001,1918.7,1918.4,0.49515365]
[1772231250306,0.001,1918.7,1918.5,0.4959333]
[1772231251688,1.30430071,1919.0,1918.6,0.4959333]
[1772231253576,1.30276185,1919.0,1918.6,0.4959333]
[1772231256298,0.48828545,1918.9,1918.6,0.4959333]
[1772231256603,0.48828545,1918.8,1918.2,0.4959333]
[1772231257798,0.48828545,1918.8,1918.0,0.00263886]
[1772231258011,0.48828545,1918.8,1918.0,0.49857216]
[1772231258875,0.48828545,1918.6,1918.0,0.49857216]
[1772231259199,0.48828545,1918.6,1917.9,2.97459058]
[1772231259200,0.48828545,1918.4,1917.9,0.0011]
[1772231262204,0.48333885,1918.2,1918.1,0.0011]
[1772231263203,0.48333885,1918.2,1917.9,0.0011]
[1772231263499,0.48333885,1918.2,1918.0,0.0011]
[1772231264200,1.30337312,1918.1,1917.8,0.0011]
[1772231264400,0.48333885,1918.0,1917.8,0.0011]
[1772231264596,1.30337312,1918.1,1917.9,0.0022]
[1772231266105,0.48333885,1918.2,1917.9,0.46349174]
[1772231266305,0.48333885,1918.2,1917.9,0.46129174]
[1772231266605,0.48333885,1918.2,1918.0,0.0022]
[1772231266807,1.78660066,1918.3,1918.0,0.46349174]
[1772231267978,1.78660066,1918.3,1918.1,0.0022]
[1772231268802,0.48333885,1918.2,1917.8,0.46239174]
[1772231269004,0.48333885,1918.2,1917.8,0.0011]
[1772231269208,0.48333885,1918.2,1917.9,0.0022]
[1772231269904,0.48333885,1918.2,1917.8,0.0011]
[1772231269905,0.48333885,1918.0,1917.8,0.0011]
[1772231272013,0.48333885,1917.9,1917.8,0.0011]
[1772231272203,0.48333885,1917.9,1917.7,0.0011]
[1772231272389,2.68433885,1918.2,1917.8,0.46349174]
[1772231272586,0.48333885,1918.1,1917.8,0.46129174]
[1772231272790,0.48333885,1918.1,1917.7,1.20623867]
[1772231273084,0.48333885,1918.1,1917.8,0.0022]
[1772231274331,1.30342668,1918.1,1917.8,0.0022]
[1772231274628,0.48333885,1918.0,1917.8,0.0022]
[1772231275524,0.48333885,1918.0,1917.9,0.0011]
[1772231276704,1.78677993,1918.0,1917.9,0.0011]
[1772231282920,0.48333885,1918.0,1917.9,0.0011]
[1772231283247,1.78677993,1918.0,1917.9,0.0011]
[1772231285845,5.2144976,1918.1,1917.9,0.0033]
[1772231286040,1.30437312,1918.1,1918.0,0.0022]
[1772231286539,1.78771197,1918.1,1917.9,0.0011]
[1772231288447,0.48333885,1918.0,1917.9,0.0011]
[1772231288646,0.48333885,1918.0,1917.7,0.0011]
[1772231288647,0.48333885,1917.9,1917.7,0.0011]
[1772231288843,0.48333885,1917.8,1917.7,0.0011]
[1772231289221,0.48333885,1917.8,1917.5,0.0011]
[1772231289922,0.48333885,1917.8,1917.5,0.46239174]
[1772231290848,1.30364499,1917.7,1917.5,0.46239174]
[1772231291548,1.76157088,1917.7,1917.5,0.0011]
[1772231291735,0.45792589,1917.6,1917.5,0.0011]
[1772231292338,1.76157088,1917.7,1917.5,0.0011]
[1772231292952,1.30357701,1917.8,1917.5,0.45456027]
[1772231293754,1.7615029,1917.8,1917.5,0.45456027]
[1772231296354,0.45792589,1917.7,1917.5,0.0011]
[1772231297064,1.76243906,1917.9,1917.5,0.45456027]
[1772231297433,0.45792589,1917.8,1917.5,0.45456027]
[1772231297926,0.45792589,1917.8,1917.5,0.0011]
[1772231299047,1.30364499,1917.7,1917.5,0.0011]
[1772231299252,0.45792589,1917.6,1917.5,0.0011]
[1772231300662,1.76157088,1917.7,1917.5,0.0011]
[1772231300868,1.30364499,1917.7,1917.4,0.45456027]
[1772231301370,5.21557996,1917.9,1917.4,0.45456027]
[1772231301970,0.45792589,1917.7,1917.4,0.45456027]
[1772231303274,5.21557996,1917.9,1917.4,0.45456027]
[1772231303275,0.45792589,1917.8,1917.4,0.45456027]
[1772231304453,1.30364499,1917.7,1917.4,0.45456027]
[1772231304878,1.76157088,1917.7,1917.4,0.45456027]
[1772231306875,1.76157088,1917.7,1917.1,0.0011]
[1772231306876,0.45792589,1917.6,1917.1,0.0011]
[1772231307171,0.45792589,1917.5,1917.1,0.0011]
[1772231309060,0.45792589,1917.3,1917.1,0.0011]
[1772231309463,0.45792589,1917.3,1916.4,0.0011]
[1772231309674,1.30383075,1917.5,1916.2,0.0011]
[1772231309675,0.45792589,1916.9,1916.2,0.45456027]
[1772231310463,0.74164693,1916.8,1916.2,0.45456027]
[1772231310776,0.45792589,1916.7,1916.2,0.45456027]
[1772231311173,1.76231908,1916.6,1916.2,0.45456027]
[1772231311376,0.45792589,1916.5,1916.2,0.0011]
[1772231312076,5.21757278,1916.7,1916.3,0.45346027]
[1772231312077,1.30437501,1916.7,1916.3,0.45346027]
[1772231312279,0.45792589,1916.6,1916.3,0.0011]
[1772231313356,0.45792589,1916.4,1916.0,0.00263886]
[1772231313675,1.30446125,1916.5,1915.8,0.45456027]
[1772231313676,0.45792589,1916.2,1915.8,0.45456027]
[1772231315289,0.45792589,1915.9,1915.3,0.45346027]
[1772231316159,0.45792589,1915.9,1915.4,0.94921653]
[1772231317182,0.45792589,1915.9,1915.2,1.30644417]
[1772231317183,0.45792589,1915.9,1915.2,1.30644391]
[1772231317387,1.7629299,1915.8,1915.2,1.75990418]